bitfinex-derivatives/quotes_BTCF0:USTF0_20250905
["timestamp","ask_amount","ask_price","bid_price","bid_amount"]
[1757075835916,0.41421,112840.0,112830.0,0.0886094]
[1757075836210,0.41421,112840.0,112830.0,1.5028894]
[1757075836803,0.7528121,112840.0,112800.0,0.3608]
[1757075837003,0.41374,112820.0,112810.0,0.0886262]
[1757075837206,0.41421,112840.0,112830.0,0.0886105]
[1757075837903,0.70421,112840.0,112830.0,0.0886105]
[1757075838099,0.41421,112840.0,112830.0,0.0886105]
[1757075838303,0.41421,112840.0,112830.0,1.4940505]
[1757075838505,0.66421,112840.0,112820.0,0.088616]
[1757075838704,0.65421,112840.0,112820.0,1.492016]
[1757075839010,0.3608,112830.0,112820.0,1.492016]
[1757075839309,0.3608,112830.0,112820.0,1.4893784]
[1757075839607,0.05294,112820.0,112810.0,0.0886221]
[1757075839813,0.05294,112820.0,112810.0,1.4002]
[1757075839814,0.41374,112820.0,112810.0,1.4002]
[1757075840010,0.3608,112830.0,112820.0,0.0886185]
[1757075840307,0.3608,112830.0,112810.0,1.4002]
[1757075840506,0.3608,112830.0,112820.0,0.0886185]
[1757075840707,0.41421,112840.0,112830.0,0.0886106]
[1757075841413,0.66421,112840.0,112820.0,0.0886181]
[1757075841611,0.3608,112830.0,112820.0,1.4838584]
[1757075842108,0.3608,112830.0,112820.0,1.39524]
[1757075842312,0.3608,112840.0,112830.0,0.0886104]
[1757075842510,0.3609,112850.0,112830.0,0.0886056]
[1757075842711,0.4309,112850.0,112830.0,0.0886066]
[1757075842909,0.5294949,112850.0,112820.0,1.8446552]
[1757075843115,0.6794949,112850.0,112820.0,1.8446552]
[1757075843310,0.6794949,112850.0,112830.0,0.0886097]
[1757075843504,0.05294,112840.0,112820.0,0.4494134]
[1757075843704,0.05294,112820.0,112800.0,0.3608]
[1757075843905,0.1415748,112800.0,112770.0,0.0001]
[1757075844109,0.3608,112790.0,112760.0,0.45852282]
[1757075844305,0.05294,112780.0,112770.0,0.088658]
[1757075844506,0.41374,112800.0,112770.0,0.3608]
[1757075844819,0.41374,112820.0,112790.0,0.4494362]
[1757075845116,0.10294,112820.0,112800.0,1.844473]
[1757075845312,0.05294,112820.0,112800.0,1.844473]
[1757075845615,0.41374,112820.0,112790.0,0.3608]
[1757075845811,0.3608,112810.0,112780.0,0.77262605]
[1757075846005,0.3608,112810.0,112790.0,0.3608]
[1757075846217,0.3608,112810.0,112790.0,1.7558]
[1757075846418,0.3608,112810.0,112800.0,1.395]
[1757075846716,0.05294,112820.0,112800.0,1.8444339]
[1757075846913,0.5023584,112820.0,112800.0,1.395]
[1757075847112,0.41374,112820.0,112800.0,1.395]
[1757075847308,0.5023589,112820.0,112800.0,1.395]
[1757075847514,0.4494295,112810.0,112780.0,0.3608]
[1757075847713,0.41374,112800.0,112790.0,1.39488]
[1757075848111,0.41374,112800.0,112780.0,0.41182815]
[1757075848418,0.5023624,112820.0,112790.0,1.80670175]
[1757075848618,0.3608,112810.0,112790.0,1.39488]
[1757075848821,0.6508,112810.0,112790.0,1.4835211]
[1757075849116,0.05294,112820.0,112800.0,0.3608]
[1757075849313,0.1415747,112800.0,112790.0,0.3608]
[1757075849718,0.2215747,112800.0,112790.0,0.3608]
[1757075850021,1.02475395,112800.0,112790.0,0.3608]
[1757075850210,0.4515747,112800.0,112790.0,0.3608]
[1757075850514,1.02475395,112800.0,112790.0,0.3328]
[1757075850716,0.088674,112750.0,112740.0,0.1]
[1757075851017,0.0886935,112730.0,112710.0,0.0887054]
[1757075851320,0.3608,112720.0,112710.0,0.3864507]
[1757075851517,0.4494976,112720.0,112710.0,0.3864507]
[1757075851716,0.7694976,112720.0,112700.0,0.1444327]
[1757075852022,0.4494976,112720.0,112710.0,0.3864507]
[1757075852214,0.3608,112730.0,112710.0,0.4751562]
[1757075852414,0.3608,112730.0,112720.0,0.0886976]
[1757075852616,0.4494931,112730.0,112710.0,0.3864507]
[1757075852814,0.3608,112720.0,112710.0,0.3864507]
[1757075853015,0.3608,112720.0,112710.0,0.0887055]
[1757075853218,0.3608,112720.0,112710.0,0.66188475]
[1757075853428,0.3608,112720.0,112710.0,0.7251562]
[1757075853623,0.3608,112740.0,112720.0,0.1444128]
[1757075853819,0.4494819,112740.0,112730.0,0.3864507]
[1757075854119,0.3608,112740.0,112730.0,0.3864507]
[1757075854323,0.8094835,112740.0,112720.0,0.05572]
[1757075854518,0.3608,112730.0,112720.0,0.05572]
[1757075854724,0.3608,112730.0,112720.0,0.4751483]
[1757075854924,0.6508,112730.0,112720.0,0.3864507]
[1757075855224,0.3608,112730.0,112720.0,0.5308683]
[1757075855617,0.3608,112750.0,112720.0,1.1416637]
[1757075855819,0.3608,112730.0,112720.0,0.05572]
[1757075856022,0.3608,112730.0,112710.0,0.4495023]
[1757075856223,0.5294941,112730.0,112710.0,0.3608]
[1757075856421,0.8094941,112730.0,112710.0,0.3608]
[1757075856616,0.6494941,112730.0,112710.0,0.7472507]
[1757075856819,0.3608,112720.0,112710.0,0.3864507]
[1757075857019,0.7008,112720.0,112690.0,1.39428]
[1757075857220,0.3608,112710.0,112700.0,0.3864507]
[1757075857426,0.6008,112710.0,112690.0,1.7806907]
[1757075857731,0.3608,112710.0,112690.0,1.7806907]
[1757075858025,0.6608,112710.0,112690.0,1.7806907]
[1757075858220,0.6508,112710.0,112690.0,0.3864507]
[1757075858419,0.3608,112700.0,112680.0,1.76598]
[1757075858618,0.3608,112720.0,112700.0,0.1444333]
[1757075858918,0.6808,112720.0,112710.0,0.3864507]
[1757075859119,1.00166351,112720.0,112680.0,3.23202536]
[1757075859324,0.3608,112710.0,112690.0,0.4495171]
[1757075859526,0.3708,112710.0,112700.0,0.3864507]
[1757075859722,0.3608,112710.0,112700.0,0.3864507]
[1757075859927,0.3608,112710.0,112680.0,2.55543277]
[1757075860229,0.5508,112710.0,112700.0,0.3864507]
[1757075860527,0.81872351,112710.0,112680.0,0.3608]
[1757075860820,0.81872351,112710.0,112690.0,0.3864507]
[1757075861225,0.3608,112700.0,112660.0,0.5053602]
[1757075861425,0.3608,112690.0,112680.0,0.3864507]
[1757075861624,0.5408,112690.0,112670.0,0.3864507]
[1757075861816,0.3608,112680.0,112670.0,0.0887369]
[1757075862017,0.6008,112680.0,112670.0,0.0887369]
[1757075862218,0.3608,112680.0,112670.0,0.4751876]
[1757075862624,0.3608,112680.0,112670.0,0.7251876]
[1757075863121,0.3608,112680.0,112670.0,0.3864507]
[1757075863324,0.6208,112680.0,112670.0,1.8688277]
[1757075863529,0.26,112680.0,112670.0,1.8688277]
[1757075863823,0.3608,112680.0,112670.0,0.3864507]
[1757075864018,0.5308,112680.0,112670.0,0.3864507]
[1757075864215,0.7908,112680.0,112650.0,0.4495523]
[1757075864415,0.3608,112660.0,112630.0,0.43214858]
[1757075864721,0.3608,112640.0,112620.0,1.51860707]
[1757075864914,0.18,112640.0,112630.0,1.75412]
[1757075865119,0.3608,112660.0,112630.0,0.3608]
[1757075865320,0.4108,112660.0,112650.0,0.3864507]
[1757075865521,0.4108,112660.0,112640.0,0.3864507]
[1757075865522,0.3908,112660.0,112640.0,0.3864507]
[1757075865721,0.3608,112650.0,112640.0,0.3864507]
[1757075866131,0.9408,112650.0,112630.0,1.39316]
[1757075866422,0.3608,112640.0,112610.0,0.3608]
[1757075866629,0.3608,112630.0,112620.0,0.3864507]
[1757075866822,0.3608,112640.0,112620.0,0.3864507]
[1757075867024,0.3608,112630.0,112620.0,0.3864507]
[1757075867224,0.3608,112640.0,112620.0,0.1402464]
[1757075867424,0.3608,112640.0,112630.0,0.4752192]
[1757075867625,0.3608,112640.0,112630.0,0.3864507]
[1757075867930,0.3608,112650.0,112640.0,0.0887606]
[1757075868130,0.6808,112650.0,112640.0,0.3864507]
[1757075868329,0.3608,112660.0,112640.0,0.4752113]
[1757075868525,0.5908,112660.0,112640.0,1.44427]
[1757075868729,0.5908,112660.0,112650.0,0.4752034]
[1757075868928,0.5908,112660.0,112650.0,0.3864507]
[1757075869119,0.088757,112650.0,112630.0,1.39272]
[1757075869327,0.088778,112620.0,112600.0,0.05599762]
[1757075869627,0.7495776,112620.0,112610.0,0.3864507]
[1757075869831,1.1103808,112620.0,112600.0,0.00017762]
[1757075870034,0.3608,112610.0,112600.0,0.38662832]
[1757075870329,0.35214142,112610.0,112600.0,0.47542052]
[1757075870631,0.3608,112610.0,112600.0,0.38662832]
[1757075870828,0.3608,112610.0,112600.0,0.52689052]
[1757075871130,0.3608,112620.0,112600.0,0.77688592]
[1757075871329,0.3608,112620.0,112610.0,0.475235]
[1757075871626,0.3608,112640.0,112620.0,0.0887706]
[1757075871929,0.4308,112640.0,112630.0,0.3864507]
[1757075872127,0.4108,112640.0,112630.0,0.4752192]
[1757075872326,0.4208,112640.0,112630.0,0.3864507]
[1757075872526,0.3808,112640.0,112630.0,0.4752192]
[1757075872742,0.3808,112640.0,112630.0,0.25]
[1757075872925,0.3708,112640.0,112630.0,0.3864507]
[1757075873226,0.01,112640.0,112630.0,0.7252189]
[1757075873432,0.3608,112660.0,112640.0,0.0887597]
[1757075873627,0.6508,112660.0,112640.0,0.05147]
[1757075873827,0.3608,112660.0,112650.0,0.3864507]
[1757075874022,0.4208,112660.0,112650.0,1.7781707]
[1757075874535,0.5095446,112660.0,112650.0,0.3864507]
[1757075874835,0.4208,112660.0,112650.0,0.3864507]
[1757075875033,0.6595446,112660.0,112640.0,1.53179]
[1757075875335,0.5708,112660.0,112650.0,0.3864507]
[1757075875728,0.6595458,112660.0,112640.0,1.39128]
[1757075875927,0.5708,112660.0,112640.0,1.5315103]
[1757075876132,0.6595445,112660.0,112650.0,0.3864507]
[1757075876532,0.6595445,112660.0,112640.0,1.5315103]
[1757075876731,0.3608,112650.0,112640.0,0.1402303]
[1757075877033,0.3608,112650.0,112640.0,1.5311903]
[1757075877233,0.3608,112650.0,112640.0,1.917641]
[1757075877429,0.3608,112670.0,112660.0,0.1402141]
[1757075877634,0.31,112670.0,112660.0,1.9173448]
[1757075877833,0.06,112670.0,112660.0,1.9173448]
[1757075878133,0.06,112670.0,112660.0,0.4379207]
[1757075878329,0.4208,112670.0,112660.0,1.8284407]
[1757075879034,0.06,112670.0,112660.0,1.8284407]
[1757075879230,0.06,112670.0,112660.0,1.8283607]
[1757075879231,0.7595365,112670.0,112660.0,1.8283607]
[1757075879433,0.4795365,112670.0,112660.0,1.8279607]
[1757075879626,0.03,112670.0,112660.0,1.8279607]
[1757075880029,0.479536,112670.0,112660.0,1.8279607]
[1757075880222,0.779536,112670.0,112660.0,0.3864507]
[1757075880424,0.3608,112670.0,112660.0,1.7761307]
[1757075880626,0.3908,112670.0,112660.0,1.7761307]
[1757075880827,0.8095364,112670.0,112660.0,1.7761307]
[1757075881029,0.4495364,112670.0,112660.0,1.7761307]
[1757075881334,0.7795364,112670.0,112660.0,1.7758107]
[1757075881734,0.6308,112670.0,112660.0,1.7758107]
[1757075882032,0.6408,112670.0,112660.0,1.7758107]
[1757075882230,0.6408,112670.0,112660.0,1.9160248]
[1757075882231,0.3908,112670.0,112660.0,1.9160248]
[1757075882530,0.3608,112690.0,112680.0,0.1401983]
[1757075882733,0.3608,112700.0,112690.0,0.0887204]
[1757075882930,0.449513,112700.0,112690.0,0.3864507]
[1757075883128,0.0887212,112690.0,112660.0,0.5010103]
[1757075883327,0.3608,112690.0,112670.0,1.4774562]
[1757075883535,0.3608,112680.0,112670.0,1.38872]
[1757075883832,0.7595284,112680.0,112660.0,0.05147]
[1757075884029,0.3608,112670.0,112660.0,0.05147]
[1757075884232,0.7395361,112670.0,112660.0,1.38828]
[1757075884435,0.7395361,112670.0,112650.0,1.38816]
[1757075884436,0.9008,112670.0,112650.0,1.38816]
[1757075884640,0.3608,112660.0,112650.0,1.7746107]
[1757075885138,0.3608,112660.0,112650.0,1.8633625]
[1757075885324,0.3608,112670.0,112660.0,0.0887439]
[1757075885530,0.3608,112670.0,112660.0,0.4379207]
[1757075886234,0.3608,112670.0,112660.0,1.7741707]
[1757075886437,0.6208,112670.0,112660.0,1.7741707]
[1757075886634,0.3608,112670.0,112660.0,1.7741707]
[1757075886936,0.6108,112670.0,112660.0,1.7741707]
[1757075887137,0.6108,112670.0,112660.0,0.3864507]
[1757075887334,0.8608,112670.0,112640.0,0.05147]
[1757075887527,0.3608,112650.0,112640.0,1.38696]
[1757075887721,0.3608,112650.0,112640.0,0.3864507]
[1757075888232,0.6208,112650.0,112640.0,1.7732107]
[1757075888433,0.3608,112660.0,112640.0,0.5266804]
[1757075888633,0.7108,112660.0,112650.0,1.38668]
[1757075888834,0.7108,112660.0,112650.0,1.7731307]
[1757075889030,0.3608,112660.0,112650.0,1.38668]
[1757075889230,0.3608,112660.0,112650.0,1.7727307]
[1757075890637,0.6408,112660.0,112650.0,1.7727307]
[1757075890838,0.3638,112660.0,112650.0,1.7727307]
[1757075891032,0.6038,112660.0,112650.0,1.7727307]
[1757075891237,0.9138,112660.0,112650.0,1.3856]
[1757075891636,0.9138,112660.0,112620.0,1.76671]
[1757075891838,0.3608,112630.0,112600.0,0.41254762]
[1757075892044,0.3608,112610.0,112600.0,1.57412732]
[1757075892226,0.3608,112610.0,112600.0,1.47412732]
[1757075892426,0.6708,112610.0,112600.0,1.77178832]
[1757075892637,0.3608,112610.0,112600.0,1.77178832]
[1757075892838,0.7108,112610.0,112600.0,1.86057952]
[1757075893039,0.3608,112620.0,112600.0,1.86057952]
[1757075893226,0.6908,112620.0,112610.0,0.3864507]
[1757075893425,0.3598,112620.0,112610.0,0.3864507]
[1757075893634,0.7198,112620.0,112610.0,0.3864507]
[1757075894036,0.6398,112620.0,112610.0,0.3864507]
[1757075894234,0.3598,112620.0,112610.0,0.4752341]
[1757075894540,0.3608,112620.0,112610.0,0.4752341]
[1757075894738,0.6058,112620.0,112610.0,0.4762341]
[1757075894940,0.3658,112620.0,112610.0,0.3874507]
[1757075895237,1.0245755,112620.0,112610.0,0.001]
[1757075895637,1.0510455,112620.0,112610.0,0.001]
[1757075896038,0.0887834,112610.0,112600.0,0.00017762]
[1757075896236,1.25750691,112610.0,112600.0,0.00017762]
[1757075896536,1.25750691,112610.0,112570.0,2.07608]
[1757075896537,0.088807,112580.0,112570.0,2.07608]
[1757075896744,0.73094504,112580.0,112570.0,3.4852107]
[1757075896937,0.6508,112580.0,112570.0,3.5740256]
[1757075897233,0.3608,112580.0,112570.0,3.5740256]
[1757075897432,0.3608,112580.0,112570.0,3.8240256]
[1757075897643,0.3608,112590.0,112570.0,3.8240216]
[1757075897837,0.3608,112590.0,112580.0,0.088807]
[1757075898031,0.6808,112590.0,112580.0,0.4752577]
[1757075898231,0.6808,112590.0,112580.0,1.3828]
[1757075898448,0.9008,112590.0,112580.0,1.38268]
[1757075898634,0.9008,112590.0,112570.0,1.71528]
[1757075898938,0.3608,112580.0,112570.0,2.1017307]
[1757075899136,0.7008,112580.0,112570.0,2.1017307]
[1757075899332,0.7008,112580.0,112560.0,0.3608]
[1757075899532,0.9508,112580.0,112570.0,0.00444]
[1757075899732,0.25,112570.0,112550.0,0.0001777]
[1757075899938,0.98952351,112560.0,112550.0,0.0001777]
[1757075900131,1.54952351,112560.0,112550.0,0.0001777]
[1757075900536,1.54952351,112560.0,112540.0,0.0001]
[1757075900730,0.3598,112550.0,112540.0,0.0001]
[1757075900936,0.6698,112550.0,112540.0,0.0001]
[1757075901136,0.9198,112550.0,112540.0,0.0001]
[1757075901333,0.6688,112550.0,112540.0,0.0001]
[1757075901634,0.6688,112550.0,112540.0,0.4753892]
[1757075902034,0.6688,112550.0,112540.0,0.3865507]
[1757075902542,0.6488,112550.0,112540.0,0.4753892]
[1757075902845,0.3588,112550.0,112540.0,0.0889385]
[1757075903033,0.6348,112550.0,112540.0,0.4763892]
[1757075903239,0.3648,112550.0,112540.0,0.4763892]
[1757075903541,0.0001,112620.0,112610.0,0.0887825]
[1757075903845,0.4156,112660.0,112620.0,0.0887709]
[1757075904137,0.8643475,112660.0,112630.0,0.7472507]
[1757075904438,0.28987094,112630.0,112620.0,0.3608]
[1757075904637,0.71863784,112630.0,112620.0,0.3608]
[1757075904836,0.71863784,112630.0,112610.0,0.3608]
[1757075904837,0.71863784,112630.0,112610.0,1.8297025]
[1757075905142,0.0887669,112630.0,112620.0,0.3864507]
[1757075905338,0.09,112630.0,112620.0,0.3864507]
[1757075905644,0.24,112630.0,112620.0,0.3608]
[1757075905949,0.64987094,112630.0,112620.0,0.7472507]
[1757075906130,0.73863724,112630.0,112620.0,0.7472507]
[1757075906334,0.73863724,112630.0,112610.0,1.74004]
[1757075906641,0.36,112630.0,112620.0,0.7472507]
[1757075906842,0.4487669,112630.0,112620.0,0.3864507]
[1757075907141,0.74063784,112630.0,112620.0,0.3608]
[1757075907342,0.65187094,112630.0,112620.0,0.8360255]
[1757075907744,0.65087094,112630.0,112620.0,0.8360255]
[1757075908044,0.59087094,112630.0,112620.0,0.8360255]
[1757075908244,0.29087094,112630.0,112620.0,0.8360255]
[1757075909141,0.57087094,112630.0,112620.0,0.8360255]
[1757075909338,0.28987094,112630.0,112620.0,0.8360255]
[1757075909542,0.29187094,112630.0,112620.0,0.8360255]
[1757075909747,0.29187094,112630.0,112620.0,0.8916655]
[1757075909938,0.58187094,112630.0,112620.0,0.7472507]
[1757075910133,0.53063814,112630.0,112620.0,2.1245307]
[1757075910336,0.69063814,112630.0,112620.0,0.7472507]
[1757075910838,0.0887744,112620.0,112610.0,0.3608]
[1757075911142,0.0887823,112610.0,112600.0,0.3608]
[1757075911439,0.088803,112590.0,112560.0,0.52255017]
[1757075911639,0.7208,112590.0,112580.0,0.3864507]
[1757075911842,0.7208,112590.0,112580.0,0.0888063]
[1757075912038,0.36,112590.0,112580.0,0.7472507]
[1757075912236,0.0887845,112610.0,112580.0,0.836057]
[1757075912443,0.4487829,112610.0,112590.0,1.8256749]
[1757075912747,0.4487827,112610.0,112600.0,0.3864507]
[1757075912945,0.36,112610.0,112600.0,0.8360412]
[1757075913244,0.0887905,112600.0,112590.0,1.37608]
[1757075913457,0.0887984,112590.0,112570.0,0.3608]
[1757075913638,0.71751881,112600.0,112580.0,1.73632]
[1757075913946,0.34,112600.0,112590.0,0.3864507]
[1757075914143,0.34,112600.0,112590.0,0.4752491]
[1757075914347,0.34,112600.0,112590.0,0.8360491]
[1757075914847,0.34,112600.0,112590.0,0.7472507]
[1757075915340,0.34,112600.0,112590.0,0.8360491]
[1757075915542,0.002,112610.0,112600.0,0.0887905]
[1757075915850,0.072,112610.0,112600.0,1.8240705]
[1757075916043,0.06,112610.0,112600.0,2.84056418]
[1757075916250,0.760441,112640.0,112610.0,0.0887826]
[1757075916445,1.070441,112640.0,112620.0,1.7605307]
[1757075916644,0.74603802,112640.0,112620.0,1.7605307]
[1757075916848,0.38523802,112640.0,112620.0,1.823652]
[1757075917038,0.38523802,112640.0,112630.0,0.3864507]
[1757075917243,1.070441,112640.0,112630.0,0.3864507]
[1757075917441,1.070441,112640.0,112620.0,1.37408]
[1757075917645,0.32440298,112630.0,112620.0,1.7600107]
[1757075917946,0.66440298,112630.0,112620.0,1.37332]
[1757075918348,0.34,112630.0,112620.0,1.37332]
[1757075918745,0.34,112630.0,112620.0,1.4620951]
[1757075918945,0.34,112630.0,112620.0,1.8485458]
[1757075919344,0.342,112630.0,112620.0,1.8485458]
[1757075919751,0.012,112630.0,112620.0,2.2093458]
[1757075919955,0.012,112630.0,112620.0,2.83938878]
[1757075920253,0.70582922,112670.0,112620.0,2.92816388]
[1757075920438,1.01582922,112670.0,112650.0,0.3864507]
[1757075920644,0.32440298,112660.0,112650.0,1.7582507]
[1757075920957,0.31,112660.0,112650.0,1.8470021]
[1757075921253,0.31,112660.0,112650.0,0.4752021]
[1757075921441,0.31,112660.0,112650.0,1.8464421]
[1757075922042,0.31,112660.0,112650.0,0.7472507]
[1757075922557,0.4156,112680.0,112650.0,2.2068021]
[1757075922753,0.0887356,112670.0,112660.0,0.3864507]
[1757075922953,0.3787356,112670.0,112660.0,0.4751942]
[1757075923153,0.29,112670.0,112660.0,0.0887435]
[1757075923356,0.3787356,112670.0,112650.0,0.4495471]
[1757075923546,0.3787356,112670.0,112660.0,0.3864507]
[1757075924049,0.29,112670.0,112660.0,0.0887435]
[1757075924353,0.29,112670.0,112660.0,0.4751942]
[1757075924555,0.3787361,112670.0,112660.0,0.4751942]
[1757075924853,1.06393908,112670.0,112660.0,1.7559307]
[1757075925054,1.06393908,112670.0,112660.0,0.3864507]
[1757075925254,1.06393908,112670.0,112660.0,1.7554907]
[1757075925452,1.06693908,112670.0,112660.0,1.7554907]
[1757075925650,0.088744,112660.0,112650.0,1.72976]
[1757075925852,0.398744,112660.0,112650.0,0.3608]
[1757075926042,0.72314698,112660.0,112650.0,2.1158107]
[1757075926450,0.72314698,112660.0,112650.0,0.7472507]
[1757075926642,0.0887519,112650.0,112630.0,0.52199687]
[1757075926841,0.0887519,112650.0,112640.0,1.4569597]
[1757075926842,0.63440298,112650.0,112640.0,1.4569597]
[1757075927050,0.31,112650.0,112640.0,1.8434104]
[1757075927451,0.31,112650.0,112640.0,0.3864507]
[1757075927452,1.08395488,112650.0,112640.0,0.3864507]
[1757075927650,0.0887613,112640.0,112620.0,0.4495755]
[1757075927856,1.15657428,112640.0,112630.0,1.7540107]
[1757075928752,0.33,112640.0,112630.0,1.8427783]
[1757075929146,0.333,112640.0,112630.0,1.8427783]
[1757075929348,0.003,112640.0,112630.0,2.2035783]
[1757075929555,0.243,112640.0,112630.0,2.2035783]
[1757075929759,0.253,112640.0,112630.0,2.2035783]
[1757075930064,0.003,112640.0,112630.0,2.4535783]
[1757075930553,0.005,112640.0,112630.0,2.4535783]
[1757075930859,0.002,112640.0,112630.0,2.4535783]
[1757075931062,0.243,112640.0,112630.0,2.3628507]
[1757075931262,0.303,112640.0,112630.0,0.3864507]
[1757075931452,0.302,112640.0,112630.0,1.7517707]
[1757075931753,0.302,112640.0,112630.0,2.2033386]
[1757075931961,0.092,112640.0,112630.0,2.2033386]
[1757075932153,0.002,112640.0,112630.0,2.2033386]
[1757075932353,0.212,112640.0,112630.0,2.1145707]
[1757075932554,0.002,112640.0,112630.0,2.2033386]
[1757075932754,0.322,112640.0,112630.0,1.8148879]
[1757075932948,0.002,112640.0,112630.0,2.2013386]
[1757075933153,0.152,112640.0,112630.0,1.7517707]
[1757075933355,0.312,112640.0,112630.0,1.7517707]
[1757075933555,0.312,112640.0,112620.0,0.52188927]
[1757075933755,0.68901298,112640.0,112620.0,0.3608]
[1757075933958,0.68520298,112630.0,112600.0,2.13256]
[1757075934161,0.32440298,112620.0,112610.0,1.3638]
[1757075934361,0.73701298,112620.0,112600.0,2.07692]
[1757075934555,1.09781298,112620.0,112610.0,1.7498907]
[1757075934750,0.77341,112620.0,112610.0,0.3864507]
[1757075934965,1.34781298,112620.0,112590.0,1.52211602]
[1757075935159,0.68520298,112610.0,112590.0,1.88291602]
[1757075935462,0.7208,112610.0,112590.0,1.88291602]
[1757075935858,0.7208,112610.0,112600.0,0.3864507]
[1757075936261,0.8095881,112610.0,112600.0,0.3864507]
[1757075936461,1.13399108,112610.0,112600.0,0.3864507]
[1757075936762,0.0887912,112600.0,112590.0,1.723]
[1757075937063,1.03781298,112600.0,112580.0,1.36208]
[1757075937359,0.3,112600.0,112590.0,0.41320208]
[1757075937569,0.3608,112610.0,112590.0,0.3864507]
[1757075937863,0.7108,112610.0,112600.0,1.36164]
[1757075938062,0.7108,112610.0,112600.0,1.8368819]
[1757075938456,0.7138,112610.0,112600.0,1.7480907]
[1757075938653,0.7138,112610.0,112590.0,0.0887947]
[1757075938654,1.28820298,112610.0,112590.0,1.361]
[1757075938859,1.03520298,112610.0,112590.0,1.8362485]
[1757075939066,1.03820298,112610.0,112590.0,1.8362485]
[1757075939363,0.3608,112600.0,112590.0,1.7471707]
[1757075939563,0.35,112600.0,112590.0,1.7515707]
[1757075939766,0.35,112600.0,112590.0,1.8403697]
[1757075940161,0.35,112600.0,112590.0,1.7515707]
[1757075940458,1.08781298,112600.0,112590.0,0.3908507]
[1757075940668,1.33781298,112600.0,112590.0,0.0044]
[1757075941165,1.33781298,112600.0,112560.0,0.4496223]
[1757075941367,0.05261,112560.0,112540.0,0.0002]
[1757075941560,0.3608,112550.0,112540.0,0.0001]
[1757075941767,1.01520298,112550.0,112540.0,0.0001]
[1757075942364,0.6908,112550.0,112540.0,0.3865507]
[1757075942560,0.6908,112550.0,112540.0,0.7253892]
[1757075942768,0.3298223,112550.0,112540.0,0.4753892]
[1757075942960,0.3298223,112550.0,112540.0,1.0861892]
[1757075943663,0.3298223,112550.0,112540.0,0.9973507]
[1757075943870,0.6906223,112550.0,112540.0,0.0001]
[1757075944262,1.26902528,112550.0,112540.0,0.0001]
[1757075944458,1.35785608,112550.0,112540.0,0.0001]
[1757075944660,1.0344531,112550.0,112540.0,0.0001]
[1757075944863,1.35885608,112550.0,112540.0,0.0001]
[1757075945064,0.6956223,112550.0,112540.0,0.0001]
[1757075945258,0.6916223,112550.0,112540.0,0.7253893]
[1757075945562,0.6916223,112550.0,112540.0,2.0825093]
[1757075945763,0.3308223,112550.0,112540.0,1.7436707]
[1757075946265,0.061,112550.0,112540.0,2.4972393]
[1757075946463,0.3608,112580.0,112570.0,0.088815]
[1757075946661,0.32,112580.0,112570.0,0.8350657]
[1757075946863,0.6808,112580.0,112570.0,0.3854507]
[1757075947060,1.09401008,112580.0,112570.0,0.3854507]
[1757075947264,1.0196115,112580.0,112550.0,1.8057503]
[1757075947468,0.64440298,112580.0,112560.0,0.4496177]
[1757075947670,0.4088071,112580.0,112570.0,0.3854507]
[1757075947869,0.088815,112570.0,112550.0,1.71648]
[1757075948063,0.67440298,112570.0,112560.0,0.3854507]
[1757075948263,0.35,112570.0,112560.0,0.3854507]
[1757075948566,0.35,112570.0,112560.0,0.4742736]
[1757075948766,0.35,112570.0,112560.0,0.7782036]
[1757075948962,0.4388151,112570.0,112560.0,0.6354507]
[1757075949467,0.8006151,112570.0,112560.0,1.9903707]
[1757075949662,0.76421808,112570.0,112560.0,0.3854507]
[1757075949865,0.351,112570.0,112560.0,0.3854507]
[1757075950168,0.4398151,112570.0,112560.0,0.3854507]
[1757075950363,0.67540298,112570.0,112560.0,0.4742737]
[1757075950665,0.351,112570.0,112560.0,0.8001807]
[1757075950868,0.351,112570.0,112560.0,0.7462507]
[1757075951068,0.351,112570.0,112560.0,0.3854507]
[1757075951265,1.12501828,112570.0,112560.0,0.3854507]
[1757075951470,0.0888311,112550.0,112540.0,0.0001]
[1757075951669,1.46483408,112550.0,112540.0,0.0001]
[1757075952665,1.10403418,112550.0,112540.0,0.0001]
[1757075952863,0.6908,112550.0,112540.0,0.4743898]
[1757075953165,0.6908,112550.0,112540.0,0.4763898]
[1757075953473,1.10403418,112550.0,112540.0,0.3875507]
[1757075953768,0.6908,112550.0,112540.0,0.4763898]
[1757075953969,0.33,112550.0,112540.0,0.4763898]
[1757075955560,0.331,112550.0,112540.0,0.4743898]
[1757075955768,0.333,112550.0,112540.0,0.4743898]
[1757075956165,1.10703418,112550.0,112540.0,0.3855507]
[1757075956562,1.10703418,112550.0,112540.0,0.0001]
[1757075956968,0.7826312,112550.0,112540.0,0.0001]
[1757075957164,1.10703418,112550.0,112540.0,0.0001]
[1757075957467,0.6938,112550.0,112540.0,0.47439]
[1757075957673,0.333,112550.0,112540.0,0.47439]
[1757075958172,1.10703448,112550.0,112540.0,0.3855507]
[1757075958872,1.16168448,112550.0,112540.0,0.3855507]
[1757075959062,0.6938,112550.0,112540.0,0.4743901]
[1757075959263,0.7826315,112550.0,112540.0,0.4743901]
[1757075959466,0.333,112550.0,112540.0,0.4743901]
[1757075959769,0.4218315,112550.0,112540.0,0.3855507]
[1757075959967,0.4218315,112550.0,112540.0,0.4743901]
[1757075960166,0.333,112550.0,112540.0,0.4743901]
[1757075960363,0.333,112550.0,112540.0,1.1390001]
[1757075960564,0.333,112550.0,112540.0,2.4870001]
[1757075960770,0.003,112550.0,112540.0,2.81140308]
[1757075961165,0.003,112550.0,112540.0,1.1390001]
[1757075961564,0.003,112550.0,112540.0,2.2358801]
[1757075961763,0.003,112550.0,112540.0,0.8890001]
[1757075961963,0.002,112550.0,112540.0,0.8890001]
[1757075962174,0.002,112550.0,112540.0,0.8930001]
[1757075962379,0.47025667,112570.0,112550.0,0.0888264]
[1757075962582,1.15465965,112570.0,112560.0,0.3854507]
[1757075962778,0.0888236,112560.0,112540.0,0.05791]
[1757075962977,1.13402658,112560.0,112540.0,1.34602]
[1757075963275,0.8096236,112560.0,112550.0,0.3854507]
[1757075963777,0.4488236,112560.0,112550.0,0.3854507]
[1757075963975,0.36,112560.0,112550.0,0.8350822]